[Event "Titled Tuesday Blitz April 25 Early 2023"]
[White "Kleiman, Jake"]
[Black "Mekhitarian, Krikor Sevag"]
[WhiteFideId "2020041"]
[BlackFideId "2107660"]
[WhiteElo "2570"]
[BlackElo "2604"]
[Result "1/2-1/2"]
[Round "10"]
[TimeControl "180+2"]
[Date "2023.04.25"]
[WhiteClock "0:00:14"]
[BlackClock "0:00:10"]

1. e4 {[%clk 0:03:00]}  c5 {[%clk 0:02:59]} 2. c3 {[%clk 0:03:01]}  Nf6 {[%clk 0:02:58]} 3. e5 {[%clk 0:03:01]}  Nd5 {[%clk 0:02:58]} 4. Bc4 {[%clk 0:03:02]}  e6 {[%clk 0:02:57]} 5. Nf3 {[%clk 0:03:02]}  d6 {[%clk 0:02:53]} 6. d4 {[%clk 0:03:02]}  cxd4 {[%clk 0:02:53]} 7. cxd4 {[%clk 0:03:03]}  Be7 {[%clk 0:02:53]} 8. O-O {[%clk 0:03:04]}  O-O {[%clk 0:02:53]} 9. Qe2 {[%clk 0:03:05]}  Nc6 {[%clk 0:02:50]} 10. a3 {[%clk 0:03:05]}  b6 {[%clk 0:02:42]} 11. Bd2 {[%clk 0:02:50]}  Bb7 {[%clk 0:02:41]} 12. Nc3 {[%clk 0:02:51]}  Nxc3 {[%clk 0:02:41]} 13. Bxc3 {[%clk 0:02:52]}  dxe5 {[%clk 0:02:38]} 14. dxe5 {[%clk 0:02:52]}  Rc8 {[%clk 0:02:38]} 15. Rad1 {[%clk 0:02:47]}  Qc7 {[%clk 0:02:38]} 16. Bd3 {[%clk 0:02:48]}  Rfd8 {[%clk 0:02:37]} 17. Rfe1 {[%clk 0:02:49]}  g6 {[%clk 0:02:15]} 18. h4 {[%clk 0:02:48]}  Bf8 {[%clk 0:02:14]} 19. h5 {[%clk 0:02:43]}  Bg7 {[%clk 0:02:14]} 20. Qe3 {[%clk 0:02:36]}  Ne7 {[%clk 0:02:11]} 21. hxg6 {[%clk 0:02:32]}  hxg6 {[%clk 0:02:01]} 22. Ng5 {[%clk 0:02:08]}  Nd5 {[%clk 0:01:28]} 23. Qh3 {[%clk 0:02:08]}  Nxc3 {[%clk 0:01:29]} 24. bxc3 {[%clk 0:01:09]}  Qe7 {[%clk 0:01:12]} 25. Qh7+ {[%clk 0:01:01]}  Kf8 {[%clk 0:01:12]} 26. Qh4 {[%clk 0:00:57]}  Rxc3 {[%clk 0:00:35]} 27. Nh7+ {[%clk 0:00:56]}  Ke8 {[%clk 0:00:35]} 28. Bb5+ {[%clk 0:00:31]}  Bc6 {[%clk 0:00:35]} 29. Nf6+ {[%clk 0:00:32]}  Kf8 {[%clk 0:00:19]} 30. Rxd8+ {[%clk 0:00:24]}  Qxd8 {[%clk 0:00:20]} 31. Qb4+ {[%clk 0:00:24]}  Rc5 {[%clk 0:00:14]} 32. Bxc6 {[%clk 0:00:21]}  Bxf6 {[%clk 0:00:14]} 33. exf6 {[%clk 0:00:21]}  Qxf6 {[%clk 0:00:14]} 34. Rc1 {[%clk 0:00:19]}  Qe5 {[%clk 0:00:09]} 35. Bf3 {[%clk 0:00:17]}  Kg7 {[%clk 0:00:09]} 36. Rxc5 {[%clk 0:00:17]}  bxc5 {[%clk 0:00:10]} 37. Qb3 {[%clk 0:00:16]}  Qc7 {[%clk 0:00:09]} 38. Qc3+ {[%clk 0:00:15]}  Kg8 {[%clk 0:00:09]} 39. g3 {[%clk 0:00:15]}  Qd6 {[%clk 0:00:08]} 40. Kg2 {[%clk 0:00:15]}  e5 {[%clk 0:00:08]} 41. Qc4 {[%clk 0:00:15]}  Kg7 {[%clk 0:00:08]} 42. Qd5 {[%clk 0:00:15]}  Qc7 {[%clk 0:00:07]} 43. Be2 {[%clk 0:00:15]}  Qe7 {[%clk 0:00:04]} 44. a4 {[%clk 0:00:11]}  Qc7 {[%clk 0:00:04]} 45. Bc4 {[%clk 0:00:11]}  a5 {[%clk 0:00:05]} 46. Kf3 {[%clk 0:00:10]}  f5 {[%clk 0:00:04]} 47. Qe6 {[%clk 0:00:09]}  e4+ {[%clk 0:00:04]} 48. Kg2 {[%clk 0:00:09]}  Kh6 {[%clk 0:00:05]} 49. Qg8 {[%clk 0:00:09]}  Qg7 {[%clk 0:00:04]} 50. Qc8 {[%clk 0:00:08]}  Qd4 {[%clk 0:00:04]} 51. Qf8+ {[%clk 0:00:08]}  Qg7 {[%clk 0:00:03]} 52. Qxg7+ {[%clk 0:00:07]}  Kxg7 {[%clk 0:00:03]} 53. Kf1 {[%clk 0:00:08]}  Kf6 {[%clk 0:00:04]} 54. Ke2 {[%clk 0:00:09]}  Ke5 {[%clk 0:00:04]} 55. Ke3 {[%clk 0:00:10]}  g5 {[%clk 0:00:05]} 56. Bb3 {[%clk 0:00:09]}  f4+ {[%clk 0:00:05]} 57. gxf4+ {[%clk 0:00:09]}  gxf4+ {[%clk 0:00:06]} 58. Kd2 {[%clk 0:00:10]}  Kd4 {[%clk 0:00:07]} 59. Bd1 {[%clk 0:00:10]}  Kc4 {[%clk 0:00:05]} 60. Kc2 {[%clk 0:00:08]}  Kd4 {[%clk 0:00:02]} 61. Kd2 {[%clk 0:00:08]}  f3 {[%clk 0:00:02]} 62. Bc2 {[%clk 0:00:08]}  c4 {[%clk 0:00:02]} 63. Bb1 {[%clk 0:00:07]}  c3+ {[%clk 0:00:03]} 64. Kd1 {[%clk 0:00:07]}  e3 {[%clk 0:00:04]} 65. fxe3+ {[%clk 0:00:07]}  Kxe3 {[%clk 0:00:04]} 66. Ke1 {[%clk 0:00:07]}  f2+ {[%clk 0:00:03]} 67. Kf1 {[%clk 0:00:08]}  Kf3 {[%clk 0:00:04]} 68. Bc2 {[%clk 0:00:08]}  Ke3 {[%clk 0:00:04]} 69. Bb3 {[%clk 0:00:07]}  Kd2 {[%clk 0:00:04]} 70. Kxf2 {[%clk 0:00:07]}  c2 {[%clk 0:00:03]} 71. Bxc2 {[%clk 0:00:07]}  Kxc2 {[%clk 0:00:04]} 72. Ke2 {[%clk 0:00:08]}  Kc3 {[%clk 0:00:04]} 73. Kd1 {[%clk 0:00:08]}  Kb2 {[%clk 0:00:05]} 74. Kd2 {[%clk 0:00:08]}  Kb3 {[%clk 0:00:06]} 75. Kc1 {[%clk 0:00:09]}  Kxa4 {[%clk 0:00:06]} 76. Kb2 {[%clk 0:00:09]}  Kb4 {[%clk 0:00:07]} 77. Ka1 {[%clk 0:00:10]}  Kb3 {[%clk 0:00:07]} 78. Kb1 {[%clk 0:00:11]}  a4 {[%clk 0:00:08]} 79. Ka1 {[%clk 0:00:12]}  a3 {[%clk 0:00:09]} 80. Kb1 {[%clk 0:00:13]}  a2+ {[%clk 0:00:09]} 81. Ka1 {[%clk 0:00:14]}  Ka4 {[%clk 0:00:10]} 82. Kxa2 {[%clk 0:00:14]} 1/2-1/2


[Site "https://www.chess.com"]

[Event "Titled Tuesday Blitz April 25 Early 2023"]
[White "Wieczorek, Oskar"]
[Black "Kollars, Dmitrij"]
[WhiteFideId "1133950"]
[BlackFideId "12909572"]
[WhiteElo "2418"]
[BlackElo "2584"]
[Result "1/2-1/2"]
[Round "10"]
[TimeControl "180+2"]
[Date "2023.04.25"]
[WhiteClock "0:00:07"]
[BlackClock "0:00:10"]

1. e4 {[%clk 0:02:58]}  d6 {[%clk 0:02:57]} 2. a4 {[%clk 0:02:57]}  Nf6 {[%clk 0:02:56]} 3. Nc3 {[%clk 0:02:57]}  c5 {[%clk 0:02:56]} 4. Bb5+ {[%clk 0:02:56]}  Bd7 {[%clk 0:02:48]} 5. Nf3 {[%clk 0:02:55]}  g6 {[%clk 0:02:45]} 6. O-O {[%clk 0:02:55]}  Bg7 {[%clk 0:02:40]} 7. Re1 {[%clk 0:02:55]}  O-O {[%clk 0:02:39]} 8. h3 {[%clk 0:02:56]}  Nc6 {[%clk 0:02:23]} 9. d3 {[%clk 0:02:56]}  a6 {[%clk 0:02:15]} 10. Bc4 {[%clk 0:02:56]}  Rc8 {[%clk 0:02:03]} 11. Bf4 {[%clk 0:02:54]}  Ne8 {[%clk 0:02:02]} 12. Rb1 {[%clk 0:02:47]}  Nc7 {[%clk 0:02:01]} 13. Nd5 {[%clk 0:02:47]}  b5 {[%clk 0:01:56]} 14. Ba2 {[%clk 0:02:47]}  Nxd5 {[%clk 0:01:54]} 15. Bxd5 {[%clk 0:02:48]}  Nb4 {[%clk 0:01:50]} 16. axb5 {[%clk 0:02:45]}  Nxd5 {[%clk 0:01:49]} 17. exd5 {[%clk 0:02:45]}  axb5 {[%clk 0:01:49]} 18. Qd2 {[%clk 0:02:38]}  e5 {[%clk 0:01:47]} 19. dxe6 {[%clk 0:02:35]}  Bxe6 {[%clk 0:01:47]} 20. Bh6 {[%clk 0:02:33]}  Bd5 {[%clk 0:01:42]} 21. Bxg7 {[%clk 0:02:33]}  Kxg7 {[%clk 0:01:43]} 22. Qf4 {[%clk 0:02:20]}  Qf6 {[%clk 0:01:42]} 23. Qxf6+ {[%clk 0:02:18]}  Kxf6 {[%clk 0:01:43]} 24. Nd2 {[%clk 0:02:19]}  Ra8 {[%clk 0:01:43]} 25. Ra1 {[%clk 0:02:19]}  Rfe8 {[%clk 0:01:35]} 26. Kf1 {[%clk 0:02:14]}  Rxe1+ {[%clk 0:01:27]} 27. Rxe1 {[%clk 0:02:13]}  Ra2 {[%clk 0:01:27]} 28. Rb1 {[%clk 0:02:14]}  b4 {[%clk 0:01:21]} 29. f3 {[%clk 0:02:09]}  Ke5 {[%clk 0:01:16]} 30. Ke2 {[%clk 0:02:03]}  g5 {[%clk 0:01:15]} 31. Nf1 {[%clk 0:01:51]}  f5 {[%clk 0:01:13]} 32. Kd2 {[%clk 0:01:38]}  h5 {[%clk 0:01:09]} 33. Re1+ {[%clk 0:01:38]}  Kf6 {[%clk 0:01:09]} 34. Rb1 {[%clk 0:01:31]}  h4 {[%clk 0:01:09]} 35. Ne3 {[%clk 0:01:31]}  Be6 {[%clk 0:01:10]} 36. c3 {[%clk 0:01:10]}  bxc3+ {[%clk 0:00:54]} 37. Kxc3 {[%clk 0:01:11]}  Ke5 {[%clk 0:00:54]} 38. Nc2 {[%clk 0:00:48]}  Kf4 {[%clk 0:00:44]} 39. d4 {[%clk 0:00:45]}  Kg3 {[%clk 0:00:21]} 40. dxc5 {[%clk 0:00:45]}  dxc5 {[%clk 0:00:21]} 41. Re1 {[%clk 0:00:46]}  Ra6 {[%clk 0:00:20]} 42. Re2 {[%clk 0:00:43]}  Rb6 {[%clk 0:00:19]} 43. b4 {[%clk 0:00:40]}  cxb4+ {[%clk 0:00:15]} 44. Nxb4 {[%clk 0:00:41]}  Bc8 {[%clk 0:00:13]} 45. Nd5 {[%clk 0:00:32]}  Rb1 {[%clk 0:00:12]} 46. Ne7 {[%clk 0:00:26]}  Rg1 {[%clk 0:00:11]} 47. Nxc8 {[%clk 0:00:25]}  Rc1+ {[%clk 0:00:10]} 48. Rc2 {[%clk 0:00:25]}  Rxc2+ {[%clk 0:00:10]} 49. Kxc2 {[%clk 0:00:26]}  Kxg2 {[%clk 0:00:11]} 50. Nd6 {[%clk 0:00:23]}  f4 {[%clk 0:00:11]} 51. Nf7 {[%clk 0:00:22]}  g4 {[%clk 0:00:08]} 52. fxg4 {[%clk 0:00:10]}  f3 {[%clk 0:00:09]} 53. Nd6 {[%clk 0:00:03]}  f2 {[%clk 0:00:10]} 54. Nf5 {[%clk 0:00:03]}  Kxh3 {[%clk 0:00:10]} 55. Ne3 {[%clk 0:00:03]}  Kg3 {[%clk 0:00:11]} 56. g5 {[%clk 0:00:03]}  Kf4 {[%clk 0:00:09]} 57. Nf1 {[%clk 0:00:03]}  Kxg5 {[%clk 0:00:09]} 58. Kd2 {[%clk 0:00:04]}  Kg4 {[%clk 0:00:08]} 59. Ke2 {[%clk 0:00:04]}  h3 {[%clk 0:00:08]} 60. Kxf2 {[%clk 0:00:05]}  Kf4 {[%clk 0:00:09]} 61. Nh2 {[%clk 0:00:05]}  Kg5 {[%clk 0:00:10]} 62. Kg3 {[%clk 0:00:06]}  Kh5 {[%clk 0:00:10]} 63. Kxh3 {[%clk 0:00:07]} 1/2-1/2


[Site "https://www.chess.com"]

[Event "Titled Tuesday Blitz April 25 Early 2023"]
[White "Rozen, Eytan"]
[Black "Kucuksari, Kaan"]
[WhiteFideId "2816750"]
[BlackFideId "6380166"]
[WhiteElo "2451"]
[BlackElo "2364"]
[Result "0-1"]
[Round "10"]
[TimeControl "180+2"]
[Date "2023.04.25"]
[WhiteClock "0:00:02"]
[BlackClock "0:00:08"]

1. c4 {[%clk 0:03:00]}  g6 {[%clk 0:02:59]} 2. Nc3 {[%clk 0:02:59]}  Bg7 {[%clk 0:02:59]} 3. g3 {[%clk 0:02:59]}  Nf6 {[%clk 0:02:58]} 4. Bg2 {[%clk 0:02:59]}  O-O {[%clk 0:02:59]} 5. d3 {[%clk 0:02:57]}  e5 {[%clk 0:02:58]} 6. Bg5 {[%clk 0:02:50]}  h6 {[%clk 0:02:54]} 7. Bxf6 {[%clk 0:02:47]}  Bxf6 {[%clk 0:02:55]} 8. e3 {[%clk 0:02:44]}  c6 {[%clk 0:02:51]} 9. Nge2 {[%clk 0:02:43]}  d6 {[%clk 0:02:43]} 10. O-O {[%clk 0:02:40]}  Be6 {[%clk 0:02:42]} 11. Qd2 {[%clk 0:02:39]}  Bg7 {[%clk 0:02:42]} 12. b3 {[%clk 0:02:38]}  Nd7 {[%clk 0:02:40]} 13. d4 {[%clk 0:02:36]}  exd4 {[%clk 0:02:33]} 14. exd4 {[%clk 0:02:37]}  Nf6 {[%clk 0:02:20]} 15. Nf4 {[%clk 0:02:15]}  Bd7 {[%clk 0:02:15]} 16. Rfe1 {[%clk 0:02:05]}  Qb6 {[%clk 0:02:13]} 17. Rad1 {[%clk 0:02:00]}  Bg4 {[%clk 0:02:12]} 18. Rc1 {[%clk 0:01:59]}  g5 {[%clk 0:02:04]} 19. c5 {[%clk 0:01:36]}  Qb4 {[%clk 0:01:55]} 20. a3 {[%clk 0:00:42]}  Qa5 {[%clk 0:01:05]} 21. b4 {[%clk 0:00:41]}  Qd8 {[%clk 0:00:59]} 22. Nd3 {[%clk 0:00:39]}  dxc5 {[%clk 0:00:55]} 23. Nxc5 {[%clk 0:00:38]}  Rb8 {[%clk 0:00:46]} 24. h3 {[%clk 0:00:37]}  Bf5 {[%clk 0:00:45]} 25. Re5 {[%clk 0:00:32]}  Bg6 {[%clk 0:00:44]} 26. Re2 {[%clk 0:00:30]}  Nd7 {[%clk 0:00:39]} 27. N3e4 {[%clk 0:00:25]}  Nb6 {[%clk 0:00:35]} 28. Rd1 {[%clk 0:00:16]}  Qc7 {[%clk 0:00:35]} 29. h4 {[%clk 0:00:14]}  gxh4 {[%clk 0:00:34]} 30. gxh4 {[%clk 0:00:15]}  Rbd8 {[%clk 0:00:34]} 31. Qe3 {[%clk 0:00:14]}  Rfe8 {[%clk 0:00:32]} 32. Qf3 {[%clk 0:00:11]}  Nd5 {[%clk 0:00:25]} 33. Rde1 {[%clk 0:00:11]}  h5 {[%clk 0:00:20]} 34. Ng5 {[%clk 0:00:10]}  Rxe2 {[%clk 0:00:20]} 35. Rxe2 {[%clk 0:00:10]}  Bxd4 {[%clk 0:00:20]} 36. Nce6 {[%clk 0:00:08]}  fxe6 {[%clk 0:00:15]} 37. Nxe6 {[%clk 0:00:08]}  Qe7 {[%clk 0:00:11]} 38. Qg3 {[%clk 0:00:06]}  Qf6 {[%clk 0:00:10]} 39. Nxd4 {[%clk 0:00:05]}  Nf4 {[%clk 0:00:09]} 40. Re4 {[%clk 0:00:02]}  Rxd4 {[%clk 0:00:08]} 41. Re8+ {[%clk 0:00:02]}  Kg7 {[%clk 0:00:08]} 42. Rb8 {[%clk 0:00:02]}  Ne2+ {[%clk 0:00:08]} 0-1


[Site "https://www.chess.com"]

[Event "Titled Tuesday Blitz April 25 Early 2023"]
[White "Djordjevic, Vuk"]
[Black "Ezat, Mohamed"]
[WhiteFideId "902098"]
[BlackFideId "10600906"]
[WhiteElo "2452"]
[BlackElo "2386"]
[Result "1-0"]
[Round "10"]
[TimeControl "180+2"]
[Date "2023.04.25"]
[WhiteClock "0:01:08"]
[BlackClock "0:00:16"]

1. d4 {[%clk 0:03:00]}  Nf6 {[%clk 0:02:59]} 2. Bg5 {[%clk 0:03:01]}  Ne4 {[%clk 0:02:56]} 3. Bf4 {[%clk 0:03:01]}  d5 {[%clk 0:02:56]} 4. e3 {[%clk 0:03:02]}  c5 {[%clk 0:02:56]} 5. Bd3 {[%clk 0:03:02]}  Nc6 {[%clk 0:02:56]} 6. c3 {[%clk 0:03:02]}  Qb6 {[%clk 0:02:53]} 7. Qb3 {[%clk 0:02:53]}  Qxb3 {[%clk 0:02:45]} 8. axb3 {[%clk 0:02:52]}  cxd4 {[%clk 0:02:43]} 9. exd4 {[%clk 0:02:50]}  Bf5 {[%clk 0:02:42]} 10. Ke2 {[%clk 0:02:42]}  e6 {[%clk 0:02:25]} 11. Nf3 {[%clk 0:02:09]}  Bg4 {[%clk 0:02:22]} 12. Nd2 {[%clk 0:01:59]}  Nxd2 {[%clk 0:02:21]} 13. Kxd2 {[%clk 0:01:57]}  Bxf3 {[%clk 0:02:19]} 14. gxf3 {[%clk 0:01:58]}  Be7 {[%clk 0:02:18]} 15. b4 {[%clk 0:01:58]}  O-O {[%clk 0:02:02]} 16. b5 {[%clk 0:01:57]}  Nb8 {[%clk 0:01:59]} 17. Ra4 {[%clk 0:01:47]}  a6 {[%clk 0:01:21]} 18. Rha1 {[%clk 0:01:32]}  Nd7 {[%clk 0:01:21]} 19. bxa6 {[%clk 0:01:32]}  bxa6 {[%clk 0:01:19]} 20. Rxa6 {[%clk 0:01:29]}  Rxa6 {[%clk 0:01:01]} 21. Rxa6 {[%clk 0:01:30]}  g5 {[%clk 0:01:01]} 22. Bg3 {[%clk 0:01:21]}  Nf6 {[%clk 0:00:52]} 23. Ra7 {[%clk 0:01:08]}  Bd8 {[%clk 0:00:24]} 24. Bd6 {[%clk 0:01:08]}  Bb6 {[%clk 0:00:16]} 25. Rb7 {[%clk 0:01:08]} 1-0


[Site "https://www.chess.com"]

[Event "Titled Tuesday Blitz April 25 Early 2023"]
[White "Shuvalova, Polina"]
[Black "Sharapov, Evgeny"]
[WhiteFideId "24171760"]
[BlackFideId "14103133"]
[WhiteElo "2281"]
[BlackElo "2367"]
[Result "1-0"]
[Round "10"]
[TimeControl "180+2"]
[Date "2023.04.25"]
[WhiteClock "0:00:02"]
[BlackClock "0:00:01"]

1. e4 {[%clk 0:02:55]}  c5 {[%clk 0:02:59]} 2. Nf3 {[%clk 0:02:49]}  d6 {[%clk 0:02:59]} 3. Bb5+ {[%clk 0:02:48]}  Bd7 {[%clk 0:02:59]} 4. Bxd7+ {[%clk 0:02:44]}  Qxd7 {[%clk 0:02:59]} 5. O-O {[%clk 0:02:43]}  Nf6 {[%clk 0:02:59]} 6. Re1 {[%clk 0:02:42]}  Nc6 {[%clk 0:02:59]} 7. b3 {[%clk 0:02:40]}  g6 {[%clk 0:02:56]} 8. Bb2 {[%clk 0:02:40]}  Bg7 {[%clk 0:02:56]} 9. c4 {[%clk 0:02:39]}  O-O {[%clk 0:02:56]} 10. d4 {[%clk 0:02:39]}  cxd4 {[%clk 0:02:56]} 11. Nxd4 {[%clk 0:02:40]}  Nxd4 {[%clk 0:02:55]} 12. Bxd4 {[%clk 0:02:36]}  Qc6 {[%clk 0:02:53]} 13. Nc3 {[%clk 0:02:34]}  e5 {[%clk 0:02:40]} 14. Be3 {[%clk 0:02:33]}  Nxe4 {[%clk 0:02:39]} 15. Nxe4 {[%clk 0:02:33]}  Qxe4 {[%clk 0:02:39]} 16. Qxd6 {[%clk 0:02:27]}  Rfd8 {[%clk 0:02:30]} 17. Qe7 {[%clk 0:02:23]}  Qc6 {[%clk 0:02:04]} 18. Rad1 {[%clk 0:02:22]}  Bf6 {[%clk 0:02:04]} 19. Qb4 {[%clk 0:02:16]}  b6 {[%clk 0:01:56]} 20. h3 {[%clk 0:02:12]}  Rxd1 {[%clk 0:01:48]} 21. Rxd1 {[%clk 0:02:12]}  Rd8 {[%clk 0:01:48]} 22. Rxd8+ {[%clk 0:02:08]}  Bxd8 {[%clk 0:01:48]} 23. Bh6 {[%clk 0:02:04]}  Qc5 {[%clk 0:01:36]} 24. Qd2 {[%clk 0:01:46]}  Qe7 {[%clk 0:01:28]} 25. Qd5 {[%clk 0:01:43]}  g5 {[%clk 0:01:15]} 26. a4 {[%clk 0:01:08]}  a5 {[%clk 0:01:08]} 27. Qc6 {[%clk 0:01:02]}  Qe6 {[%clk 0:00:44]} 28. Qa8 {[%clk 0:00:46]}  Qe7 {[%clk 0:00:37]} 29. Qd5 {[%clk 0:00:37]}  Qf6 {[%clk 0:00:25]} 30. h4 {[%clk 0:00:31]}  gxh4 {[%clk 0:00:20]} 31. Be3 {[%clk 0:00:31]}  Kg7 {[%clk 0:00:16]} 32. Qe4 {[%clk 0:00:24]}  Be7 {[%clk 0:00:11]} 33. Qg4+ {[%clk 0:00:22]}  Kf8 {[%clk 0:00:05]} 34. Kh2 {[%clk 0:00:20]}  Bc5 {[%clk 0:00:03]} 35. Qc8+ {[%clk 0:00:17]}  Kg7 {[%clk 0:00:03]} 36. Bxc5 {[%clk 0:00:11]}  bxc5 {[%clk 0:00:03]} 37. Qxc5 {[%clk 0:00:12]}  Qf4+ {[%clk 0:00:03]} 38. Kh3 {[%clk 0:00:12]}  h5 {[%clk 0:00:03]} 39. Qe3 {[%clk 0:00:10]}  Qg4+ {[%clk 0:00:03]} 40. Kh2 {[%clk 0:00:11]}  f6 {[%clk 0:00:03]} 41. c5 {[%clk 0:00:11]}  Qb4 {[%clk 0:00:02]} 42. c6 {[%clk 0:00:10]}  Qb8 {[%clk 0:00:02]} 43. Qe4 {[%clk 0:00:08]}  Qc7 {[%clk 0:00:02]} 44. Qd5 {[%clk 0:00:08]}  Kf8 {[%clk 0:00:01]} 45. Kh3 {[%clk 0:00:05]}  Ke7 {[%clk 0:00:01]} 46. Kxh4 {[%clk 0:00:06]}  Qc8 {[%clk 0:00:01]} 47. g3 {[%clk 0:00:02]} 1-0


[Site "https://www.chess.com"]

[Event "Titled Tuesday Blitz April 25 Early 2023"]
[White "Javakhadze, Zurab"]
[Black "Arat, Ufuk Sezen"]
[WhiteFideId "13603647"]
[BlackFideId "6309089"]
[WhiteElo "2381"]
[BlackElo "2289"]
[Result "1-0"]
[Round "10"]
[TimeControl "180+2"]
[Date "2023.04.25"]
[WhiteClock "0:00:12"]
[BlackClock "0:00:02"]

1. Nf3 {[%clk 0:03:00]}  d5 {[%clk 0:02:58]} 2. g3 {[%clk 0:03:01]}  Nf6 {[%clk 0:02:58]} 3. Bg2 {[%clk 0:03:01]}  c6 {[%clk 0:02:57]} 4. O-O {[%clk 0:03:02]}  g6 {[%clk 0:02:58]} 5. d3 {[%clk 0:03:01]}  Bg7 {[%clk 0:02:57]} 6. Nbd2 {[%clk 0:02:59]}  O-O {[%clk 0:02:53]} 7. e4 {[%clk 0:02:58]}  dxe4 {[%clk 0:02:54]} 8. dxe4 {[%clk 0:02:58]}  Bg4 {[%clk 0:02:53]} 9. h3 {[%clk 0:02:58]}  Bxf3 {[%clk 0:02:53]} 10. Qxf3 {[%clk 0:02:59]}  Nbd7 {[%clk 0:02:53]} 11. Qe2 {[%clk 0:02:56]}  e5 {[%clk 0:02:53]} 12. Nc4 {[%clk 0:02:54]}  Qc7 {[%clk 0:02:53]} 13. b3 {[%clk 0:02:48]}  b5 {[%clk 0:02:50]} 14. Ne3 {[%clk 0:02:33]}  Rfd8 {[%clk 0:02:49]} 15. a4 {[%clk 0:02:32]}  bxa4 {[%clk 0:02:42]} 16. Rxa4 {[%clk 0:02:31]}  Nc5 {[%clk 0:02:42]} 17. Rc4 {[%clk 0:02:24]}  Ne6 {[%clk 0:02:42]} 18. Nd5 {[%clk 0:02:15]}  Qa5 {[%clk 0:02:28]} 19. Rxc6 {[%clk 0:02:08]}  Nxd5 {[%clk 0:01:36]} 20. exd5 {[%clk 0:02:02]}  Nd4 {[%clk 0:01:36]} 21. Qc4 {[%clk 0:01:55]}  Nxc6 {[%clk 0:01:32]} 22. dxc6 {[%clk 0:01:56]}  Rac8 {[%clk 0:01:28]} 23. Be3 {[%clk 0:01:56]}  Bf8 {[%clk 0:01:18]} 24. f4 {[%clk 0:01:37]}  Rc7 {[%clk 0:00:50]} 25. fxe5 {[%clk 0:01:28]}  Qxe5 {[%clk 0:00:49]} 26. Bf4 {[%clk 0:01:00]}  Qc5+ {[%clk 0:00:49]} 27. Qxc5 {[%clk 0:01:00]}  Bxc5+ {[%clk 0:00:49]} 28. Kh2 {[%clk 0:01:01]}  Bd6 {[%clk 0:00:48]} 29. Rd1 {[%clk 0:00:57]}  Be7 {[%clk 0:00:34]} 30. Bxc7 {[%clk 0:00:36]}  Rxd1 {[%clk 0:00:31]} 31. Bf4 {[%clk 0:00:36]}  Bd8 {[%clk 0:00:16]} 32. c7 {[%clk 0:00:36]}  Bxc7 {[%clk 0:00:15]} 33. Bxc7 {[%clk 0:00:36]}  Rd2 {[%clk 0:00:16]} 34. c4 {[%clk 0:00:31]}  Rb2 {[%clk 0:00:16]} 35. c5 {[%clk 0:00:27]}  Rxb3 {[%clk 0:00:16]} 36. c6 {[%clk 0:00:27]}  Kf8 {[%clk 0:00:13]} 37. Bd8 {[%clk 0:00:20]}  Ke8 {[%clk 0:00:13]} 38. c7 {[%clk 0:00:20]}  Kd7 {[%clk 0:00:13]} 39. Bd5 {[%clk 0:00:17]}  Rb2+ {[%clk 0:00:13]} 40. Kg1 {[%clk 0:00:16]}  a5 {[%clk 0:00:06]} 41. Bxf7 {[%clk 0:00:15]}  Re2 {[%clk 0:00:07]} 42. Bc4 {[%clk 0:00:14]}  Re1+ {[%clk 0:00:03]} 43. Kf2 {[%clk 0:00:14]}  Re5 {[%clk 0:00:02]} 44. Ba6 {[%clk 0:00:12]} 1-0


[Site "https://www.chess.com"]

[Event "Titled Tuesday Blitz April 25 Early 2023"]
[White "Kim, Sergey"]
[Black "Demchenko, Anton"]
[WhiteFideId "13700570"]
[BlackFideId "4160258"]
[WhiteElo "2651"]
[BlackElo "2545"]
[Result "1-0"]
[Round "10"]
[TimeControl "180+2"]
[Date "2023.04.25"]
[WhiteClock "0:00:17"]
[BlackClock "0:00:02"]

1. d4 {[%clk 0:03:00]}  Nf6 {[%clk 0:02:54]} 2. c4 {[%clk 0:03:01]}  d6 {[%clk 0:02:55]} 3. Nc3 {[%clk 0:03:01]}  e5 {[%clk 0:02:55]} 4. Nf3 {[%clk 0:03:00]}  Nc6 {[%clk 0:02:55]} 5. e4 {[%clk 0:02:59]}  Bg4 {[%clk 0:02:54]} 6. d5 {[%clk 0:02:57]}  Nd4 {[%clk 0:02:54]} 7. Be2 {[%clk 0:02:57]}  Nxe2 {[%clk 0:02:53]} 8. Qxe2 {[%clk 0:02:56]}  Be7 {[%clk 0:02:48]} 9. h3 {[%clk 0:02:55]}  Bd7 {[%clk 0:02:49]} 10. O-O {[%clk 0:02:50]}  O-O {[%clk 0:02:48]} 11. Ne1 {[%clk 0:02:49]}  Kh8 {[%clk 0:02:40]} 12. Nd3 {[%clk 0:02:49]}  Ng8 {[%clk 0:02:40]} 13. f4 {[%clk 0:02:46]}  exf4 {[%clk 0:02:39]} 14. Bxf4 {[%clk 0:02:46]}  f6 {[%clk 0:02:22]} 15. Be3 {[%clk 0:02:34]}  Re8 {[%clk 0:02:22]} 16. c5 {[%clk 0:02:26]}  Bf8 {[%clk 0:02:15]} 17. Qf2 {[%clk 0:02:24]}  a6 {[%clk 0:01:18]} 18. a4 {[%clk 0:02:05]}  Ne7 {[%clk 0:01:16]} 19. Nf4 {[%clk 0:01:55]}  Ng6 {[%clk 0:01:13]} 20. Nxg6+ {[%clk 0:01:54]}  hxg6 {[%clk 0:01:14]} 21. Rae1 {[%clk 0:01:52]}  Kg8 {[%clk 0:01:10]} 22. Bd4 {[%clk 0:01:37]}  g5 {[%clk 0:01:04]} 23. b4 {[%clk 0:01:32]}  Qe7 {[%clk 0:00:54]} 24. a5 {[%clk 0:01:11]}  Rac8 {[%clk 0:00:53]} 25. h4 {[%clk 0:01:03]}  gxh4 {[%clk 0:00:46]} 26. Qxh4 {[%clk 0:01:03]}  Qf7 {[%clk 0:00:31]} 27. Re3 {[%clk 0:00:56]}  c6 {[%clk 0:00:04]} 28. Rg3 {[%clk 0:00:51]}  dxc5 {[%clk 0:00:01]} 29. bxc5 {[%clk 0:00:29]}  Be7 {[%clk 0:00:02]} 30. d6 {[%clk 0:00:25]}  Bd8 {[%clk 0:00:02]} 31. Qh6 {[%clk 0:00:21]}  Re6 {[%clk 0:00:02]} 32. Rf4 {[%clk 0:00:17]} 1-0


[Site "https://www.chess.com"]